bitfinex-derivatives/quotes_ETHF0:USTF0_20210407
["timestamp","ask_amount","ask_price","bid_price","bid_amount"]
[1617810556091,2.90695,1984.0,1983.9,4.8017]
[1617810557395,5.09345,1984.0,1983.9,4.8017]
[1617810557802,70.83695,1984.0,1983.9,0.7438]
[1617810558002,70.83695,1984.0,1983.8,2.1248]
[1617810558196,70.83695,1984.0,1983.1,17.07865]
[1617810558500,70.83695,1984.0,1983.4,6.32]
[1617810558696,70.83695,1984.0,1983.2,6.31]
[1617810558902,5.09345,1984.0,1983.1,17.07865]
[1617810559103,5.09345,1984.0,1983.5,6.21]
[1617810559497,56.7642,1983.7,1983.2,6.29]
[1617810559796,56.7642,1983.7,1983.6,6.22]
[1617810559997,56.7642,1983.7,1983.3,6.08]
[1617810560296,59.67115,1983.7,1983.6,5.42]
[1617810560599,59.67115,1983.7,1983.4,6.18]
[1617810560999,59.67115,1983.7,1983.6,5.08]
[1617810561296,59.67115,1983.7,1983.5,5.7]
[1617810561602,59.67115,1983.7,1983.6,6.31]
[1617810561804,59.67115,1983.7,1982.8,6.24]
[1617810562195,2.90695,1982.9,1982.7,2.90695]
[1617810562596,2.90695,1982.9,1982.8,4.49]
[1617810565899,2.90695,1982.9,1982.2,6.23]
[1617810566100,2.90695,1982.3,1981.8,12.9041]
[1617810566300,5.45245,1982.3,1981.8,12.9041]
[1617810566702,5.45245,1982.3,1982.0,6.12]
[1617810566902,5.45245,1982.3,1981.9,6.1]
[1617810567102,5.45245,1982.3,1982.1,81.2664]
[1617810567301,5.45245,1982.3,1982.1,87.3864]
[1617810567502,5.45245,1982.3,1982.1,81.2664]
[1617810567702,5.45245,1982.3,1982.2,6.06]
[1617810567913,2.90695,1982.3,1982.2,6.06]
[1617810568203,2.90695,1982.3,1982.2,10.92885]
[1617810570007,2.90695,1982.3,1982.2,11.92255]
[1617810570307,2.90695,1982.3,1982.2,10.92885]
[1617810572012,0.9984,1984.2,1982.2,10.92885]
[1617810572315,82.6805,1984.3,1983.1,2.90695]
[1617810572515,82.6805,1984.3,1983.1,5.09375]
[1617810572713,82.6805,1984.3,1983.2,6.1]
[1617810573918,2.0,1985.2,1983.2,6.1]
[1617810574118,1.0088,1985.3,1983.6,57.0024]
[1617810574319,1.0088,1985.3,1983.7,2.90695]
[1617810574519,1.0088,1985.3,1983.7,8.95695]
[1617810575821,70.9948,1984.4,1983.7,8.95695]
[1617810576219,2.90695,1983.8,1983.7,6.05]
[1617810580225,2.90695,1983.8,1983.7,8.95695]
[1617810580725,2.90695,1983.8,1983.7,6.05]
[1617810581224,5.87995,1983.8,1983.3,6.04]
[1617810581425,5.87995,1983.8,1983.7,6.12]
[1617810581626,5.87995,1983.8,1983.3,6.26]
[1617810582028,5.87995,1983.8,1983.7,6.21]
[1617810582427,5.87995,1983.8,1983.5,2.90695]
[1617810582625,5.87995,1983.8,1983.6,6.05]
[1617810583741,2.90695,1983.8,1983.6,6.05]
[1617810585029,70.9948,1984.4,1983.6,6.05]
[1617810585231,0.9989,1984.6,1983.6,6.05]
[1617810585430,70.1908,1985.0,1983.7,65.9322]
[1617810585837,70.1908,1985.0,1983.8,8.12]
[1617810586432,70.1908,1985.0,1984.5,2.90695]
[1617810586634,70.1908,1985.0,1984.5,4.78675]
[1617810586836,30.0,1986.1,1984.6,6.04]
[1617810587137,109.9746,1985.9,1984.6,6.04]
[1617810587535,2.9961,1985.8,1984.6,6.04]
[1617810587737,30.0,1985.7,1984.6,6.04]
[1617810587937,57.1407,1984.9,1984.6,6.04]
[1617810588159,90.0717,1984.9,1984.6,6.04]
[1617810588352,90.0717,1984.9,1983.7,13.7793]
[1617810588353,2.90695,1984.7,1983.8,6.28]
[1617810588537,3.91475,1984.7,1983.8,6.28]
[1617810588738,3.91475,1984.7,1983.7,16.68625]
[1617810588939,33.91475,1984.7,1983.8,5.208]
[1617810589742,35.91475,1984.7,1983.8,5.208]
[1617810590443,3.90775,1983.9,1983.8,5.1257]
[1617810590641,68.50645,1983.9,1983.8,5.1257]
[1617810592755,68.50645,1983.9,1983.8,4.105]
[1617810592967,98.50645,1983.9,1983.8,3.3579]
[1617810593154,98.50645,1983.9,1982.6,80.4817]
[1617810593347,35.35055,1983.9,1982.3,14.086]
[1617810593550,75.9489,1983.2,1982.3,14.086]
[1617810593748,74.9266,1983.2,1982.3,14.086]
[1617810593948,77.5622,1983.2,1982.4,5.3131]
[1617810594348,2.90695,1982.5,1982.4,5.1365]
[1617810594586,5.68425,1982.5,1982.4,4.3423]
[1617810594823,5.68425,1982.5,1982.4,1.0736]
[1617810595109,5.68425,1982.5,1981.4,69.4779]
[1617810595308,5.68425,1982.5,1982.4,6.34]
[1617810595662,5.68425,1982.5,1980.8,66.8245]
[1617810595849,5.68425,1982.5,1982.4,5.91]
[1617810596055,5.68425,1982.5,1982.4,4.9956]
[1617810596248,5.68425,1982.5,1981.6,5.45]
[1617810596249,2.90695,1982.5,1982.2,77.278]
[1617810596449,2.90695,1982.5,1982.4,9.03695]
[1617810596988,2.90695,1982.5,1982.4,2.90695]
[1617810597253,2.90695,1982.5,1982.4,9.07695]
[1617810598049,2.90695,1982.5,1982.4,6.17]
[1617810598464,2.90695,1982.5,1982.3,6.27]
[1617810598851,2.90695,1982.5,1982.4,6.27]
[1617810599052,2.90695,1982.5,1982.0,6.3]
[1617810599251,2.90695,1982.5,1981.4,6.31]
[1617810599453,2.90695,1982.5,1982.4,6.06]
[1617810599750,2.90695,1982.5,1981.3,13.661]
[1617810599953,2.90695,1982.5,1981.4,6.36]
[1617810600154,2.90695,1982.5,1982.4,6.31]
[1617810600452,2.90695,1982.5,1981.6,2.90695]
[1617810600653,2.90695,1982.5,1982.4,6.27]
[1617810601052,2.90695,1982.5,1981.7,6.07]
[1617810601253,2.90695,1982.5,1982.4,6.17]
[1617810601553,2.90695,1982.5,1981.7,6.14]
[1617810601753,32.90695,1982.5,1981.7,6.14]
[1617810602254,32.90695,1982.5,1981.4,6.14]
[1617810602453,2.90695,1981.5,1981.4,6.14]
[1617810602656,5.26245,1981.5,1981.3,9.11695]
[1617810602953,5.26245,1981.5,1981.4,6.07]
[1617810604396,5.26245,1981.5,1980.4,13.623]
[1617810604397,5.26245,1981.5,1980.5,6.28]
[1617810604556,2.90695,1980.6,1980.5,2.90695]
[1617810604756,4.84945,1980.6,1980.5,2.90695]
[1617810604957,4.84945,1980.6,1980.5,8.99695]
[1617810605657,4.84945,1980.6,1980.5,6.09]
[1617810606157,4.84945,1980.6,1979.7,6.36]
[1617810606359,4.84945,1980.6,1980.5,6.16]
[1617810606559,1.9425,1980.6,1980.5,6.16]
[1617810606759,58.2841,1980.2,1979.7,6.29]
[1617810606958,60.8117,1980.2,1979.5,13.7884]
[1617810607459,60.8117,1980.2,1979.6,6.12]
[1617810608559,2.90695,1979.7,1979.6,6.12]
[1617810608761,5.23075,1979.7,1979.6,6.12]
[1617810611463,2.90695,1979.7,1979.6,6.12]
[1617810612464,2.90695,1979.7,1979.6,9.02695]
[1617810613077,61.1631,1980.9,1979.6,9.02695]
[1617810613277,61.1631,1980.9,1979.6,12.03985]
[1617810614280,61.1631,1980.9,1979.7,30.0]
[1617810614465,61.1631,1980.9,1979.8,6.27]
[1617810614666,2.0,1982.3,1980.7,2.90695]
[1617810614866,82.1599,1981.6,1980.8,6.19]
[1617810616667,2.90695,1980.9,1980.8,6.19]
[1617810618068,5.98155,1980.9,1980.3,6.2]
[1617810618269,5.98155,1980.9,1979.8,6.13]
[1617810618470,5.98155,1980.9,1980.8,6.13]
[1617810618672,5.98155,1980.9,1979.5,13.7884]
[1617810618673,5.98155,1980.9,1980.4,6.13]
[1617810618870,2.0,1980.8,1979.9,3.57]
[1617810619172,2.0,1980.8,1979.8,0.13]
[1617810619370,74.795,1980.3,1979.5,13.7884]
[1617810619671,74.795,1980.3,1980.0,6.07]
[1617810619672,77.4631,1980.3,1980.0,6.07]
[1617810619877,77.4631,1980.3,1979.5,13.7884]
[1617810620079,77.4631,1980.3,1979.8,6.32]
[1617810620272,77.4631,1980.3,1979.6,6.18]
[1617810620672,2.90695,1979.7,1979.6,6.18]
[1617810620874,4.91085,1979.7,1979.6,6.18]
[1617810622274,2.90695,1979.7,1979.6,6.18]
[1617810624278,84.3457,1980.8,1979.6,6.18]
[1617810624580,84.3457,1980.8,1980.3,2.90695]
[1617810624777,84.3457,1980.8,1980.3,5.64375]
[1617810625133,84.3457,1980.8,1980.4,6.21]
[1617810625877,84.3457,1980.8,1979.7,6.1]
[1617810626078,84.3457,1980.8,1980.5,6.28]
[1617810626478,84.3457,1980.8,1979.7,6.31]
[1617810626678,2.90695,1979.8,1979.7,2.90695]
[1617810626979,5.12975,1979.8,1979.7,9.22695]
[1617810627899,5.12975,1979.8,1979.7,6.32]
[1617810628279,5.12975,1979.8,1979.6,6.36]
[1617810628578,5.12975,1979.8,1979.7,6.17]
[1617810628780,5.12975,1979.8,1979.5,13.7884]
[1617810628781,5.12975,1979.8,1979.6,6.14]
[1617810629280,2.90695,1979.8,1979.7,6.34]
[1617810629481,2.90695,1979.8,1979.6,6.16]
[1617810629682,2.90695,1979.8,1979.7,6.12]
[1617810630081,2.90695,1979.8,1979.6,6.27]
[1617810630291,4.98605,1979.8,1979.7,6.2]
[1617810630701,4.98605,1979.8,1979.6,6.13]
[1617810630981,4.98605,1979.8,1979.7,6.25]
[1617810631181,4.98605,1979.8,1979.3,2.90695]
[1617810631488,4.98605,1979.8,1979.7,6.21]
[1617810631980,4.98605,1979.8,1979.4,6.22]
[1617810632182,2.90695,1979.8,1979.7,6.21]
[1617810632490,2.90695,1979.8,1979.4,6.14]
[1617810632685,65.8582,1980.1,1979.6,5.48685]
[1617810632886,65.8582,1980.1,1979.6,2.5799]
[1617810633190,65.8582,1980.1,1979.7,6.13]
[1617810633792,65.8582,1980.1,1978.8,6.05]
[1617810633991,65.8582,1980.1,1979.8,6.11]
[1617810633992,68.8008,1980.1,1979.8,6.11]
[1617810634190,2.9426,1980.1,1979.8,6.11]
[1617810634391,2.9426,1980.1,1978.8,6.28]
[1617810634592,58.2387,1979.8,1978.8,6.28]
[1617810634791,58.2387,1979.8,1979.0,2.90695]
[1617810635231,58.2387,1979.8,1979.1,6.29]
[1617810635895,60.2387,1979.8,1979.1,6.29]
[1617810636894,2.90695,1979.2,1979.1,6.29]
[1617810637094,5.65555,1979.2,1979.1,6.29]
[1617810638698,5.65555,1979.2,1978.6,2.90695]
[1617810639198,5.65555,1979.2,1979.1,6.17]
[1617810639401,5.65555,1979.2,1978.6,2.90695]
[1617810639598,5.65555,1979.2,1979.1,6.34]
[1617810640099,5.65555,1979.2,1978.6,2.90695]
[1617810640298,5.65555,1979.2,1979.1,6.16]
[1617810640598,5.65555,1979.2,1978.7,6.26]
[1617810640806,2.90695,1978.8,1978.4,2.90695]
[1617810641099,2.90695,1978.8,1978.7,6.3]
[1617810641612,2.90695,1978.8,1978.6,6.08]
[1617810641799,70.39,1978.7,1978.6,6.08]
[1617810642101,70.39,1978.7,1978.4,2.90695]
[1617810642299,70.39,1978.7,1978.5,6.16]
[1617810642700,2.90695,1978.6,1978.5,6.16]
[1617810646507,6.00345,1978.6,1978.5,6.16]
[1617810646706,65.50895,1978.6,1978.4,6.2]
[1617810647210,65.50895,1978.6,1978.5,6.11]
[1617810647424,65.50895,1978.6,1978.4,6.09]
[1617810647615,65.50895,1978.6,1978.5,6.23]
[1617810648115,65.50895,1978.6,1976.9,100.6186]
[1617810648116,65.50895,1978.6,1978.4,6.11]
[1617810648315,65.50895,1978.6,1978.5,6.17]
[1617810648509,65.50895,1978.6,1977.4,0.05]
[1617810648713,65.50895,1978.6,1977.3,13.1592]
[1617810648910,2.90695,1977.4,1977.3,16.06615]
[1617810649128,5.74145,1977.4,1977.3,22.24615]
[1617810649334,5.74145,1977.4,1977.3,9.08695]
[1617810650510,5.74145,1977.4,1977.3,6.18]
[1617810651010,3.0965,1978.6,1977.3,30.0]
[1617810651214,75.3572,1979.2,1977.4,58.4936]
[1617810651412,75.3572,1979.2,1977.5,30.0]
[1617810651612,74.336,1979.2,1977.5,36.07]
[1617810651811,2.0,1979.1,1977.5,6.07]
[1617810652212,4.9734,1979.1,1977.5,6.07]
[1617810652813,2.90695,1977.9,1977.7,2.90695]
[1617810653214,2.90695,1977.9,1977.8,6.28]
[1617810653817,74.336,1979.2,1977.8,39.167]
[1617810654018,13.7114,1982.3,1977.8,39.167]
[1617810654215,2.0,1980.2,1978.2,71.7064]
[1617810654419,2.0,1980.2,1978.3,6.31]
[1617810654816,32.0,1980.4,1978.6,2.90695]
[1617810655017,2.0,1980.1,1978.6,4.87955]
[1617810655316,2.0,1980.1,1978.7,6.12]
[1617810655717,30.0,1980.4,1978.7,6.12]
[1617810655918,103.4998,1980.5,1978.7,6.12]
[1617810656116,101.4998,1980.5,1978.7,6.12]
[1617810656920,2.90695,1978.8,1978.7,6.12]
[1617810657323,2.90695,1978.8,1978.5,6.11]
[1617810657745,2.90695,1978.8,1978.7,6.1]
[1617810657922,2.90695,1978.8,1978.5,6.22]
[1617810658222,4.97945,1978.8,1978.5,6.22]
[1617810658421,4.97945,1978.8,1978.7,6.15]
[1617810658622,4.97945,1978.8,1978.5,6.33]
[1617810658823,2.90695,1978.6,1978.5,6.33]
[1617810659023,2.90695,1978.6,1978.3,13.4178]
[1617810659226,2.90695,1978.6,1978.5,6.23]
[1617810659623,2.90695,1978.6,1978.4,6.15]
[1617810659824,3.91325,1978.6,1978.5,6.09]
[1617810660144,3.91325,1978.6,1978.3,13.4178]
[1617810660145,2.90695,1978.6,1978.4,6.15]
[1617810660566,2.90695,1978.6,1978.5,6.14]
[1617810660724,2.90695,1978.6,1978.3,70.1773]
[1617810660725,2.90695,1978.6,1978.4,6.29]
[1617810660924,2.90695,1978.6,1978.4,9.19695]
[1617810661149,2.90695,1978.6,1978.5,6.11]
[1617810661342,2.90695,1978.6,1978.5,2.6213]
[1617810661557,2.90695,1978.6,1978.5,32.6213]
[1617810661755,2.90695,1978.6,1978.5,38.7713]
[1617810662526,72.1155,1980.0,1978.5,38.7713]
[1617810662826,72.1155,1980.0,1979.0,2.90695]
[1617810663029,1.0238,1981.1,1979.1,30.0]
[1617810663227,65.5953,1981.1,1979.2,71.3867]
[1617810663426,65.5953,1981.1,1979.3,30.0]
[1617810663633,65.5953,1981.1,1979.3,36.27]
[1617810664751,65.5953,1981.1,1979.3,38.27]
[1617810664948,64.5715,1981.1,1980.0,2.90695]
[1617810665128,0.02,1981.3,1980.0,5.41545]
[1617810665432,0.02,1981.3,1980.1,6.35]
[1617810665929,64.68,1981.7,1980.1,6.35]
[1617810666931,2.90695,1980.2,1980.1,6.35]
[1617810669729,2.90695,1980.2,1980.1,36.35]
[1617810670619,62.68,1981.7,1980.1,38.35]
[1617810670792,1.0077,1981.7,1980.1,38.35]
[1617810670934,2.0,1982.3,1981.1,2.90695]
[1617810671255,2.0,1982.3,1981.2,6.26]
[1617810671476,63.7206,1982.9,1981.2,6.26]
[1617810671935,2.0,1982.8,1981.2,6.26]
[1617810672633,63.7206,1982.9,1981.2,36.26]
[1617810672835,1.0059,1983.0,1981.2,36.26]
[1617810673071,1.0059,1983.0,1981.6,101.12265]
[1617810673247,1.0059,1983.0,1981.7,6.06]
[1617810673834,83.495,1983.5,1981.7,6.06]
[1617810674036,2.0,1983.4,1981.7,6.06]
[1617810674635,83.495,1983.5,1981.7,6.06]
[1617810675035,2.90695,1981.8,1981.7,6.06]
[1617810680144,1.0015,1982.8,1982.1,68.5007]
[1617810680344,31.0148,1983.6,1982.1,70.9471]
[1617810680543,2.0,1983.7,1982.2,6.05]
[1617810681048,2.0,1983.7,1982.3,2.90695]
[1617810681468,2.0,1983.7,1982.4,6.34]
[1617810682150,2.0,1983.7,1982.2,6.31]
[1617810682648,2.0,1983.7,1982.5,6.24]
[1617810682948,2.0,1983.7,1982.5,2.8431]
[1617810683149,62.7489,1983.9,1982.6,6.08]
[1617810683447,64.7259,1983.9,1982.6,6.08]
[1617810683649,6.0966,1983.9,1982.6,6.08]
[1617810683950,6.0966,1983.9,1982.9,59.008]
[1617810684150,6.0966,1983.9,1983.0,6.16]
[1617810685151,2.90695,1983.1,1983.0,6.16]
[1617810685851,2.90695,1983.1,1982.8,6.23]
[1617810686058,2.90695,1983.1,1983.0,5.49]
[1617810686350,2.90695,1983.1,1982.9,6.27]
[1617810686752,2.90695,1983.1,1983.0,4.74]
[1617810686951,2.90695,1983.1,1981.8,83.8617]
[1617810687152,2.90695,1981.9,1981.8,83.8617]
[1617810687554,2.90695,1981.9,1981.8,90.1317]
[1617810690059,5.82735,1981.9,1981.8,90.1317]
[1617810690562,5.82735,1981.9,1981.8,6.27]
[1617810693061,5.82735,1981.9,1981.2,6.32]
[1617810693461,5.82735,1981.9,1981.8,6.25]
[1617810693861,5.82735,1981.9,1981.2,6.35]
[1617810694161,5.82735,1981.9,1981.8,6.13]
[1617810694362,2.90695,1981.9,1981.2,6.23]
[1617810694763,2.90695,1981.9,1981.8,6.24]
[1617810694964,2.90695,1981.9,1981.2,6.31]
[1617810695363,2.90695,1981.3,1981.1,72.33285]
[1617810695765,2.90695,1981.3,1981.2,6.23]
[1617810697369,2.90695,1981.5,1981.2,6.23]
[1617810699367,2.90695,1981.5,1981.4,2.90695]
[1617810699768,0.999,1982.9,1981.4,9.04695]
[1617810699968,1.0187,1983.6,1982.2,70.3209]
[1617810700171,6.0966,1983.9,1982.2,2.9927]
[1617810700369,6.0966,1983.9,1982.7,70.2997]
[1617810700575,6.0966,1983.9,1982.7,72.2949]
[1617810700576,5.098,1983.9,1982.7,72.2949]
[1617810700877,5.098,1983.9,1982.8,6.32]
[1617810701269,2.90695,1983.8,1983.7,83.0509]
[1617810701568,2.90695,1983.8,1983.7,85.9896]
[1617810701772,2.90695,1983.8,1983.7,92.2396]
[1617810703372,2.90695,1983.8,1983.7,95.14655]
[1617810706975,2.90695,1983.8,1983.7,12.09565]
[1617810707179,2.90695,1983.8,1983.7,9.15695]
[1617810707598,2.90695,1983.8,1983.7,6.25]
[1617810708020,2.90695,1983.8,1983.0,6.27]
[1617810708178,2.90695,1983.8,1983.7,6.27]
[1617810708577,2.90695,1983.8,1983.0,6.35]
[1617810708777,2.90695,1983.8,1983.7,6.11]
[1617810709181,2.90695,1983.8,1983.0,6.22]
[1617810709477,2.7011,1983.9,1983.0,6.22]
[1617810711021,2.7011,1983.9,1983.4,74.3232]
[1617810711378,2.7011,1983.9,1983.5,6.23]
[1617810712481,1.0119,1984.2,1983.5,6.23]
[1617810712681,2.5013,1984.4,1983.5,6.23]
[1617810712882,1.0054,1984.7,1983.5,6.23]
[1617810713083,31.0054,1984.7,1983.5,6.23]
[1617810713486,2.90695,1983.6,1983.5,6.23]
[1617810713683,4.83685,1983.6,1983.5,6.23]
[1617810714084,4.83685,1983.6,1982.9,6.33]
[1617810714285,4.83685,1983.6,1983.5,6.25]
[1617810714687,4.83685,1983.6,1982.9,6.29]
[1617810714893,4.83685,1983.6,1983.5,6.11]
[1617810715286,4.83685,1983.6,1982.9,6.22]
[1617810715487,2.90695,1983.0,1982.8,2.90695]
[1617810715687,5.15235,1983.0,1982.6,68.5516]
[1617810715887,5.15235,1983.0,1982.9,6.11]
[1617810716087,5.15235,1983.0,1982.7,6.28]
[1617810716486,5.15235,1983.0,1982.9,6.08]
[1617810716886,5.15235,1983.0,1982.5,6.31]
[1617810717086,5.15235,1983.0,1982.9,6.16]
[1617810717587,5.15235,1983.0,1982.5,6.34]
[1617810717787,5.15235,1983.0,1982.9,6.19]
[1617810717987,5.15235,1983.0,1982.1,2.90695]
[1617810718190,5.15235,1983.0,1982.5,6.32]
[1617810718487,5.15235,1983.0,1982.9,6.27]
[1617810718687,5.15235,1983.0,1982.6,6.13]
[1617810719013,5.15235,1983.0,1982.9,6.21]
[1617810719186,5.15235,1983.0,1981.9,61.0343]
[1617810719187,5.15235,1983.0,1982.0,3.51]
[1617810719387,2.90695,1982.1,1982.0,3.51]
[1617810719588,4.81395,1982.1,1981.7,2.90695]
[1617810719895,4.81395,1982.1,1982.0,6.08]
[1617810720089,4.81395,1982.1,1981.3,26.7537]
[1617810720288,4.81395,1982.1,1981.9,6.27]
[1617810720489,4.81395,1982.1,1982.0,5.81]
[1617810720692,4.81395,1982.1,1976.9,7.64665424]
[1617810720889,4.81395,1982.1,1981.9,6.35]
[1617810721190,4.81395,1982.1,1982.0,5.51]
[1617810721389,4.81395,1982.1,1981.1,66.44685]
[1617810721689,4.81395,1982.1,1982.0,4.77]
[1617810721888,4.81395,1982.1,1980.4,1.1]
[1617810722290,4.81395,1982.1,1982.0,4.5]
[1617810722490,4.81395,1982.1,1979.5,1.0122]
[1617810722690,4.81395,1982.1,1981.1,2.90695]
[1617810722892,4.81395,1982.1,1982.0,6.22]
[1617810723092,4.81395,1982.1,1980.4,83.2203]
[1617810723295,4.81395,1982.1,1980.4,95.6843]
[1617810723296,60.1081,1981.8,1980.4,95.6843]
[1617810723493,2.90695,1981.2,1980.9,2.90695]
[1617810723692,4.97445,1981.2,1980.9,2.90695]
[1617810723895,4.97445,1981.2,1981.0,6.34]
[1617810724695,2.0675,1981.2,1981.0,6.34]
[1617810725595,2.0675,1981.2,1981.1,2.90695]
[1617810725798,2.0675,1981.2,1981.1,9.21695]
[1617810727300,60.1081,1981.8,1981.1,9.21695]
[1617810727610,60.1081,1981.8,1981.1,6.31]
[1617810727611,2.90695,1981.2,1981.1,6.31]
[1617810728000,2.90695,1981.2,1981.0,6.31]
[1617810728203,2.90695,1981.2,1981.1,6.3]
[1617810728406,2.90695,1981.2,1981.1,8.3859]
[1617810728605,2.90695,1981.2,1981.1,2.0859]
[1617810728806,2.90695,1981.2,1981.1,8.1759]
[1617810729206,0.9953,1982.8,1981.1,8.1759]
[1617810729506,0.9953,1982.8,1981.6,2.90695]
[1617810729827,84.0061,1983.1,1981.6,2.90695]
[1617810729828,84.0061,1983.1,1981.6,5.22525]
[1617810730010,84.0061,1983.1,1981.7,6.35]
[1617810731409,7.618,1983.6,1982.2,68.9191]
[1617810731611,7.618,1983.6,1982.2,74.84825]
[1617810731813,7.618,1983.6,1982.3,6.18]
[1617810733613,2.90695,1982.4,1982.3,6.18]
[1617810735214,2.90695,1982.4,1981.7,6.31]
[1617810735414,2.90695,1982.4,1982.3,6.19]
[1617810735822,2.90695,1982.4,1982.0,6.25]
[1617810736120,2.90695,1982.4,1982.3,6.19]
[1617810736319,2.90695,1982.4,1982.0,6.27]
[1617810736716,2.90695,1982.4,1982.3,6.19]
[1617810736916,2.90695,1982.4,1981.9,70.2464]
[1617810737117,2.90695,1982.4,1982.0,6.17]
[1617810737519,2.90695,1982.1,1982.0,6.17]
[1617810740825,2.90695,1982.1,1982.0,5.6595]
[1617810741027,5.87615,1982.1,1982.0,5.6595]
[1617810745631,5.87615,1982.1,1982.0,5.609]
[1617810746032,35.87615,1982.1,1981.0,66.4773]
[1617810746233,35.87615,1982.1,1980.5,26.4695]
[1617810746447,61.0613,1981.6,1979.8,66.3866]
[1617810746641,95.0633,1981.6,1979.8,66.3866]
[1617810746840,95.0633,1981.6,1981.1,6.05]
[1617810747133,2.0,1981.5,1979.3,2.0]
[1617810747334,32.0,1981.5,1981.2,6.31]
[1617810747536,2.90695,1981.3,1981.2,6.31]
[1617810747734,30.0,1981.2,1979.8,2.90695]
[1617810747941,84.1043,1980.9,1979.8,2.90695]
[1617810748133,84.1043,1980.9,1979.3,13.1463]
[1617810748335,84.1043,1980.9,1979.9,6.2]
[1617810748537,86.1043,1980.9,1979.4,6.14]
[1617810748737,86.1043,1980.9,1979.3,13.1463]
[1617810748935,86.1043,1980.9,1980.0,6.19]
[1617810749135,86.1043,1980.9,1979.4,6.18]
[1617810749539,2.90695,1980.2,1980.1,6.29]
[1617810749738,5.62505,1980.2,1979.4,9.22695]
[1617810749936,5.62505,1980.2,1979.5,6.2]
[1617810750136,5.62505,1980.2,1980.1,6.21]
[1617810750336,5.62505,1980.2,1979.4,2.90695]
[1617810750536,5.62505,1980.2,1979.5,6.1]
[1617810750736,5.62505,1980.2,1980.1,6.28]
[1617810751041,5.62505,1980.2,1979.4,2.90695]
[1617810751338,5.62505,1980.2,1979.5,6.34]
[1617810751537,2.90695,1979.6,1979.5,6.34]
[1617810751737,5.38065,1979.6,1979.5,6.34]
[1617810753440,2.4737,1979.6,1979.5,6.34]
[1617810753647,2.90695,1980.0,1979.5,6.34]
[1617810753965,2.90695,1980.0,1979.5,39.075]
[1617810754190,74.8505,1980.7,1979.6,32.0]
[1617810754444,74.8505,1980.7,1979.7,6.08]
[1617810754669,74.8505,1980.7,1979.8,2.0]
[1617810755064,74.8505,1980.7,1979.9,6.14]
[1617810755241,74.8505,1980.7,1979.9,8.5648]
[1617810755743,2.90695,1980.2,1979.9,8.5648]
[1617810755943,2.90695,1980.2,1980.1,6.32]
[1617810756447,2.90695,1980.2,1980.0,6.07]
[1617810756643,2.90695,1980.2,1979.4,4.11]
[1617810756844,2.90695,1980.2,1980.1,6.07]
[1617810757244,2.90695,1980.2,1979.4,6.09]
[1617810757645,2.863,1980.4,1980.1,6.09]
[1617810757844,2.863,1980.4,1979.4,9.00695]
[1617810758044,2.863,1980.4,1979.5,6.25]
[1617810758245,2.863,1980.4,1980.2,6.28]
[1617810758545,2.863,1980.4,1979.4,2.90695]
[1617810758845,2.863,1980.4,1980.3,6.26]
[1617810759344,2.863,1980.4,1979.7,6.22]
[1617810759544,2.863,1980.4,1980.3,6.28]
[1617810759745,5.76995,1980.4,1979.5,3.1]
[1617810760046,2.90695,1980.4,1980.3,6.24]
[1617810760447,2.90695,1980.4,1979.5,6.07]
[1617810760647,2.90695,1980.4,1979.4,2.90695]
[1617810760947,2.90695,1980.4,1980.3,6.27]
[1617810761247,2.90695,1980.4,1979.4,2.90695]
[1617810761448,2.90695,1980.4,1980.3,6.35]
[1617810761650,2.90695,1980.4,1979.9,2.90695]
[1617810762049,2.90695,1980.4,1980.0,6.26]
[1617810762249,2.90695,1980.4,1980.0,8.515]
[1617810763051,1.0212,1982.3,1980.0,40.515]
[1617810763257,68.0628,1982.1,1980.2,71.8676]
[1617810763654,68.0628,1982.1,1980.7,2.90695]
[1617810763856,68.0628,1982.1,1980.7,5.35335]
[1617810764053,68.0628,1982.1,1980.8,6.33]
[1617810764454,98.0628,1982.1,1980.8,6.33]
[1617810765556,68.0628,1982.1,1980.8,6.33]
[1617810765756,68.0628,1982.1,1981.0,2.90695]
[1617810765956,68.0628,1982.1,1981.1,6.31]
[1617810766156,68.0628,1982.1,1981.1,8.969]
[1617810767661,2.90695,1981.2,1981.1,8.969]
[1617810771263,84.6231,1982.6,1981.1,82.2121]
[1617810771864,84.6231,1982.6,1981.8,2.90695]
[1617810772064,84.6231,1982.6,1981.8,5.29925]
[1617810772365,84.6231,1982.6,1981.9,6.26]
[1617810773863,2.90695,1982.0,1981.9,6.26]
[1617810774565,2.90695,1982.0,1981.2,6.15]
[1617810774863,2.90695,1982.0,1981.9,6.17]
[1617810775063,2.90695,1982.0,1981.2,6.08]